bitfinex/quotes_ETHUSD_20260302
["timestamp","ask_amount","ask_price","bid_price","bid_amount"]
[1772489646182,0.499,2046.5,2046.1,0.001]
[1772489646982,0.499,2046.4,2046.1,0.001]
[1772489650673,0.499,2046.4,2046.1,0.003]
[1772489650877,1.72056006,2046.6,2046.1,0.003]
[1772489651081,0.499,2046.5,2046.1,0.003]
[1772489652079,0.499,2046.5,2046.3,0.001]
[1772489652279,0.501,2046.5,2046.3,0.001]
[1772489652478,1.72260025,2046.5,2046.3,0.001]
[1772489652778,0.499,2046.4,2046.3,0.001]
[1772489653588,0.499,2046.4,2046.1,0.001]
[1772489653958,1.22171724,2046.3,2046.1,0.001]
[1772489656481,0.499,2046.3,2046.1,0.001]
[1772489656690,0.5,2046.2,2046.1,0.001]
[1772489662623,0.5,2046.2,2045.8,0.001]
[1772489662624,0.499,2046.1,2045.8,0.001]
[1772489663993,1.72177695,2046.2,2045.8,0.003]
[1772489663994,0.5,2046.2,2045.8,0.003]
[1772489664200,0.499,2046.1,2045.8,0.003]
[1772489664494,0.499,2046.1,2045.8,0.001]
[1772489664794,0.499,2046.0,2045.8,0.001]
[1772489665362,0.499,2045.9,2045.5,0.001]
[1772489665616,0.499,2045.8,2045.5,0.001]
[1772489666973,0.499,2045.6,2045.5,0.001]
[1772489667798,0.499,2045.6,2045.1,1.22243411]
[1772489668104,0.4985,2045.5,2044.8,1.22556598]
[1772489668276,0.4985,2045.5,2044.7,1.22263384]
[1772489668476,0.4985,2045.4,2044.7,1.22563384]
[1772489668675,0.4985,2045.3,2044.5,0.003]
[1772489669098,0.4985,2045.1,2044.1,0.72755984]
[1772489669344,0.4985,2044.9,2044.2,1.22597231]
[1772489670106,0.4985,2044.7,2044.1,1.95358833]
[1772489670603,0.4985,2044.7,2044.1,1.95058559]
[1772489670815,0.4985,2044.7,2044.1,2.67043493]
[1772489671015,0.4985,2044.7,2044.2,0.003]
[1772489671580,0.4985,2044.7,2044.3,0.71684934]
[1772489672279,0.4985,2044.7,2044.2,0.003]
[1772489672474,0.4985,2044.7,2044.3,0.47858982]
[1772489672906,0.4985,2044.7,2044.2,0.003]
[1772489674890,1.7209759,2045.1,2044.5,0.48158982]
[1772489675120,0.47858982,2044.8,2044.1,1e-08]
[1772489675319,0.47858982,2044.8,2043.0,1.46837714]
[1772489675320,0.4985,2044.1,2043.6,1.22630129]
[1772489675502,0.4985,2044.1,2043.7,0.47858982]
[1772489675813,0.4985,2044.1,2043.6,0.003]
[1772489676580,0.4985,2044.1,2043.5,1.22334352]
[1772489676781,0.4985,2044.1,2042.9,0.003]
[1772489677310,0.4985,2043.8,2042.9,0.003]
[1772489677606,0.4985,2043.8,2043.2,0.003]
[1772489678116,4.89165483,2044.3,2043.5,0.003]
[1772489678117,0.4985,2044.3,2043.5,0.003]
[1772489679393,0.4985,2044.2,2043.5,1.22639124]
[1772489680108,0.45144521,2044.4,2043.7,0.003]
[1772489680670,1.67335968,2046.0,2044.8,0.49127393]
[1772489680806,0.45344521,2045.9,2045.1,2.39469224]
[1772489681011,0.45344521,2045.9,2045.1,2.88596617]
[1772489681424,0.002,2045.8,2045.3,1.22231457]
[1772489681619,0.45344521,2045.8,2045.3,1.22231457]
[1772489684247,0.45344521,2045.8,2045.2,4.88925829]
[1772489684421,0.002,2045.7,2045.4,2.39469224]
[1772489684624,0.45344521,2046.0,2045.4,2.39469224]
[1772489687616,0.45344521,2046.0,2045.5,1.22219506]
[1772489690459,0.002,2046.0,2045.6,0.48733399]
[1772489691143,1.22390217,2046.0,2045.4,0.48733399]
[1772489691328,0.47990631,2045.9,2045.0,0.48733399]
[1772489692476,0.47990631,2045.8,2045.1,1.7097681]
[1772489692671,0.47990631,2045.8,2045.2,0.48733399]
[1772489693355,0.47990631,2045.8,2045.2,0.48833399]
[1772489693560,0.48190631,2045.8,2045.2,0.48833399]
[1772489694350,0.48190631,2045.8,2045.3,1.22231457]
[1772489694552,1.70397728,2045.8,2045.3,0.48733399]
[1772489694751,0.5,2045.6,2045.3,0.48733399]
[1772489694972,0.5,2045.6,2045.2,0.001]
[1772489695248,0.502,2045.6,2045.2,1.22336927]
[1772489695448,0.502,2045.6,2045.2,1.71070326]
[1772489698185,1.70397728,2045.8,2045.2,1.71070326]
[1772489698186,0.48190631,2045.8,2045.3,0.48733399]
[1772489698354,0.002,2045.8,2045.4,0.48733399]
[1772489699071,0.002,2045.8,2045.5,1.70952905]
[1772489700376,0.002,2045.8,2045.5,0.48733399]
[1772489700574,0.002,2045.8,2045.2,1.71068924]
[1772489700575,0.48190631,2045.8,2045.2,1.71068924]
[1772489700973,0.48190631,2045.8,2045.2,0.001]
[1772489701282,0.47990631,2045.6,2045.2,0.001]
[1772489701783,0.48190631,2045.8,2045.2,0.48833399]
[1772489702586,0.002,2046.0,2045.7,2.39469224]
[1772489702791,0.793,2046.1,2045.7,2.39469224]
[1772489702958,0.793,2046.1,2045.5,0.48733399]
[1772489703282,0.793,2046.1,2045.6,1.22213531]
[1772489703996,0.793,2046.1,2045.6,1.71895429]
[1772489705090,0.002,2046.6,2045.6,1.71895429]
[1772489705091,0.49250952,2046.6,2045.9,0.49681898]
[1772489705388,0.49250952,2046.6,2046.0,1.22189638]
[1772489705601,0.49250952,2046.6,2046.0,1.71871536]
[1772489705762,0.49250952,2046.6,2046.1,0.49681898]
[1772489707321,0.49250952,2046.6,2046.1,1.71860947]
[1772489709016,0.002,2046.4,2046.1,1.71860947]
[1772489709529,0.49050952,2046.3,2045.8,1.22197031]
[1772489709825,0.49050952,2046.3,2045.7,1.2230262]
[1772489709993,0.49050952,2046.3,2045.7,0.001]
[1772489710728,0.49050952,2046.2,2045.7,0.001]
[1772489712025,0.49050952,2046.0,2045.7,0.001]
[1772489712810,0.49050952,2046.0,2045.5,0.001]
[1772489713926,0.49050952,2045.9,2045.5,0.001]
[1772489714691,0.23148655,2045.9,2045.5,0.001]
[1772489716728,0.47424511,2046.2,2045.5,0.4942029]
[1772489716906,0.47424511,2046.3,2045.5,0.4942029]
[1772489718720,1.22177695,2046.2,2045.6,1.22213531]
[1772489718915,0.46117642,2046.1,2045.6,1.22213531]
[1772489719831,1.68485222,2046.4,2045.7,0.4779599]
[1772489720035,0.46117642,2046.3,2045.7,0.4779599]
[1772489720840,0.002,2046.1,2045.7,1.70100707]
[1772489721429,0.002,2046.1,2045.7,1.22304717]
[1772489721976,0.46317642,2046.1,2045.7,0.001]
[1772489722133,0.46117642,2045.9,2045.2,0.001]
[1772489723172,0.46117642,2045.7,2045.2,0.001]
[1772489725140,0.46117642,2045.5,2045.2,0.001]
[1772489728891,0.46117642,2045.5,2043.9,0.77609654]
[1772489728892,1.6834166,2045.5,2043.9,0.77609654]
[1772489729182,1.6834166,2045.5,2043.7,0.4779599]
[1772489729183,0.46117642,2044.6,2043.7,0.4779599]
[1772489729352,1.25217642,2044.5,2043.7,0.4779599]
[1772489729550,1.25217642,2044.5,2043.8,0.77609654]
[1772489729752,0.46117642,2044.4,2043.8,0.77609654]
[1772489730058,0.46117642,2044.4,2043.8,3.1e-07]
[1772489730753,0.46117642,2044.2,2043.8,3.1e-07]
[1772489732771,2.19917642,2044.2,2043.5,0.4779599]
[1772489732977,1.22303214,2044.1,2043.5,1.70133479]
[1772489733284,0.46117642,2044.4,2043.6,0.4779599]
[1772489733471,0.46117642,2044.4,2043.7,2.87265214]
[1772489733667,1.39917642,2044.6,2043.8,0.4779599]
[1772489734290,1.39917642,2044.6,2043.9,0.001]
[1772489735397,1.68396927,2044.5,2043.9,0.001]
[1772489737485,0.46117642,2044.4,2043.9,0.001]
[1772489739783,0.46117642,2044.2,2043.7,0.001]
[1772489739988,0.46117642,2044.0,2043.7,0.001]
[1772489740152,0.46117642,2044.0,2043.4,0.001]
[1772489741664,0.46117642,2044.0,2042.7,0.4779599]
[1772489741665,0.46117642,2043.8,2042.7,0.4779599]
[1772489742272,0.46117642,2043.8,2042.5,1.2239663]
[1772489742273,0.46117642,2043.7,2042.5,1.2239663]
[1772489742486,0.46117642,2043.5,2042.5,1.2239663]
[1772489742665,0.80635817,2043.8,2042.4,1.2240256]
[1772489742666,0.46117642,2043.3,2042.4,1.2240256]
[1772489742983,0.46117642,2043.3,2042.4,1.7019855]
[1772489743756,0.46117642,2043.3,2042.2,1.22413444]
[1772489743757,0.46117642,2043.1,2042.2,1.22413444]
[1772489743959,0.46117642,2043.0,2041.9,0.4779599]
[1772489744219,0.46117642,2043.1,2041.9,0.4779599]
[1772489744464,1.738,2043.0,2042.2,0.4779599]
[1772489744596,1.09957817,2043.2,2042.7,3.82935067]
[1772489744781,1.09957817,2043.2,2042.7,0.4779599]
[1772489746088,1.09957817,2043.2,2042.7,1.70178485]
[1772489746402,1.09957817,2043.2,2042.7,1.70278485]
[1772489746907,1.09957817,2043.2,2042.7,1.22482495]
[1772489747391,2.32315683,2043.2,2042.7,1.22482495]
[1772489747798,1.09957817,2043.2,2042.7,1.22482495]
[1772489747982,2.32315136,2043.2,2042.7,1.22482495]
[1772489748303,1.09957817,2043.2,2042.7,0.001]
[1772489748473,2.32315052,2043.2,2042.7,0.001]
[1772489749194,1.09957817,2043.2,2042.7,0.001]
[1772489750300,1.09957817,2043.2,2042.7,1.22487036]
[1772489750610,0.45133943,2043.7,2042.7,1.48839333]
[1772489750924,0.45133943,2043.7,2042.7,4.8397841]
[1772489751278,0.45133943,2043.7,2042.7,1.48839333]
[1772489752573,0.45133943,2043.7,2042.9,3.35139077]
[1772489752574,1.67465782,2043.7,2042.9,3.35139077]
[1772489752976,1.67465782,2043.7,2042.9,3.61491374]
[1772489754982,0.45133943,2043.8,2043.1,0.26352297]
[1772489756283,0.002,2043.9,2043.1,0.26352297]
[1772489756480,0.002,2043.9,2043.3,0.26352297]
[1772489757015,0.002,2043.9,2043.4,1.22345111]
[1772489758686,0.002,2043.9,2043.4,1.48697408]
[1772489758894,0.002,2043.9,2043.5,0.26352297]
[1772489759199,0.002,2043.9,2043.3,5.15732741]
[1772489759909,0.002,2043.6,2043.3,5.15732741]
[1772489760111,0.002,2043.8,2043.4,3.61491374]
[1772489760517,0.002,2044.1,2043.4,3.61491374]
[1772489760683,0.002,2044.1,2043.5,0.26352297]
[1772489761103,0.002,2044.1,2043.6,1.22333137]
[1772489761386,0.002,2044.1,2043.6,1.48685434]
[1772489761716,0.45333943,2044.4,2043.7,3.35139077]
[1772489761891,0.002,2044.4,2043.8,0.26352297]
[1772489763214,0.002,2044.4,2043.9,1.22315181]
[1772489763582,0.002,2044.4,2043.9,1.48667478]
[1772489765016,0.002,2044.4,2044.0,0.26352297]
[1772489765596,0.002,2044.4,2044.1,1.48655511]
[1772489766589,0.002,2044.4,2044.2,0.26352297]
[1772489766903,0.002,2044.4,2044.1,1.22303214]
[1772489771017,0.002,2044.4,2043.9,1.22315181]
[1772489772122,0.002,2044.4,2044.1,0.001]
[1772489772322,0.002,2044.2,2044.1,0.001]
[1772489772720,1.67383661,2045.0,2044.2,0.26152297]
[1772489773019,0.002,2044.7,2044.3,1.22291248]
[1772489773221,0.45333943,2044.7,2044.1,0.001]
[1772489773424,0.45133943,2044.5,2043.9,0.001]
[1772489774695,0.45133943,2044.3,2043.9,0.001]
[1772489774894,0.45133943,2044.1,2043.9,0.001]
[1772489775103,1.22309197,2044.0,2043.9,0.001]
[1772489775317,1.6744314,2044.0,2043.9,0.001]
[1772489776608,2.17033943,2044.0,2043.9,0.001]
[1772489779111,0.49785349,2043.9,2043.6,0.001]
[1772489779708,0.49785349,2043.8,2043.6,0.001]
[1772489784823,1.72106896,2043.8,2043.6,0.001]
[1772489785130,1.723,2043.8,2043.6,0.001]
[1772489785707,1.725,2043.8,2043.6,0.001]
[1772489787208,0.002,2043.8,2043.6,0.001]
[1772489787407,1.723,2043.9,2043.6,0.26252297]
[1772489788228,1.724,2044.0,2043.6,0.26252297]
[1772489790032,1.724,2044.0,2043.7,1.22327151]
[1772489790840,0.002,2044.3,2043.9,0.25952297]
[1772489791342,0.49985349,2044.7,2044.0,0.25952297]
[1772489791640,0.49785349,2044.6,2043.7,1.22327151]
[1772489791808,0.49785349,2044.6,2043.6,1.48385395]
[1772489792023,0.49785349,2044.4,2043.6,1.48385395]
[1772489792215,0.49785349,2044.2,2043.6,1.48385395]
[1772489794344,0.002,2044.7,2043.7,0.25952297]
[1772489794637,2.21985349,2044.7,2043.8,0.25952297]
[1772489796744,2.21985349,2044.7,2044.0,0.25952297]
[1772489798745,1.718,2044.6,2044.1,1.22303214]
[1772489799120,0.49785349,2044.5,2043.9,4.89241944]
[1772489799525,0.49785349,2044.5,2043.9,5.15194241]
[1772489800447,0.49785349,2044.5,2043.9,1.48267478]
[1772489800618,1.72266146,2044.5,2043.9,1.48267478]
[1772489800819,0.49985349,2044.5,2043.9,1.48267478]
[1772489801514,1.72264992,2044.5,2043.9,1.48267478]
[1772489806647,1.72264992,2044.5,2044.0,0.25952297]
[1772489806835,0.002,2044.5,2044.0,0.25952297]
[1772489807019,1.718,2044.4,2044.0,0.25952297]
[1772489808949,1.718,2044.4,2044.1,1.22303214]
[1772489809150,2.20698001,2044.4,2044.1,1.22303214]
[1772489809752,1.718,2044.4,2044.1,1.48255511]
[1772489810227,2.20898001,2044.5,2044.1,1.48255511]
[1772489810431,0.002,2044.7,2044.2,0.45561913]
[1772489810635,0.48898001,2044.5,2043.8,0.001]
[1772489810953,0.48898001,2044.4,2043.8,0.001]
[1772489811155,0.48898001,2044.2,2043.8,0.001]
[1772489812624,1.22291248,2044.3,2043.8,0.001]
[1772489812625,0.48898001,2044.0,2043.8,0.001]
[1772489812826,0.48898001,2044.0,2043.6,0.001]
[1772489813355,0.48898001,2043.8,2043.6,0.001]
[1772489819137,1.722,2044.4,2043.8,0.45561913]
[1772489819455,2.21098001,2044.4,2043.8,0.45561913]
[1772489820740,0.002,2044.4,2043.9,0.45561913]
[1772489821149,0.002,2044.4,2044.1,0.45561913]
[1772489822267,2.94368905,2044.7,2044.0,1.22309197]
[1772489822268,0.002,2044.7,2044.2,2.39345823]
[1772489822565,0.002,2045.0,2044.3,0.45561913]
[1772489822566,1.71347837,2045.0,2044.3,0.45561913]
[1772489822863,0.49098001,2045.0,2044.3,0.45561913]
[1772489823364,0.49098001,2045.0,2044.5,0.45561913]
[1772489823866,0.002,2045.0,2044.5,0.45561913]
[1772489824642,0.002,2045.0,2044.7,0.45561913]
[1772489825352,0.002,2044.8,2044.7,0.45561913]
[1772489825872,0.002,2044.8,2044.5,1.22279285]
[1772489826078,0.49098001,2044.8,2044.5,1.22279285]
[1772489827972,0.44420408,2044.8,2044.4,4.89117143]
[1772489828150,0.49098001,2045.0,2044.4,5.34679056]
[1772489828866,0.49098001,2045.0,2044.4,4.89117143]
[1772489829065,0.49098001,2045.0,2044.5,0.45561913]
[1772489829742,0.002,2045.0,2044.6,0.45561913]
[1772489829961,0.002,2045.0,2044.7,1.22267325]
[1772489830242,0.002,2045.3,2044.8,0.45561913]
[1772489832157,0.48898001,2045.2,2044.7,1.22267325]
[1772489832460,0.48898001,2045.2,2044.7,1.67829238]
[1772489832666,0.002,2045.3,2044.8,0.45561913]
[1772489833994,0.48898001,2045.8,2045.2,2.84907736]
[1772489834200,0.48898001,2045.8,2045.3,1.22231457]
[1772489834375,0.48898001,2045.8,2045.3,1.6779337]
[1772489835279,1.712,2046.0,2045.3,1.22231457]
[1772489835593,3.42287731,2046.0,2045.4,0.45561913]
[1772489836092,1.22387722,2046.1,2045.4,0.45561913]
[1772489836295,1.22387722,2046.1,2045.6,0.45561913]
[1772489836794,1.71285723,2046.1,2045.6,0.45561913]
[1772489837008,0.49098001,2046.1,2045.6,0.45561913]
[1772489838802,0.002,2045.8,2045.7,1.22207557]
[1772489839103,0.002,2045.8,2045.6,1.67770509]
[1772489842154,0.48229319,2045.8,2045.1,0.45272479]
[1772489842407,0.48029319,2045.7,2045.0,0.45272479]
[1772489842702,0.48029319,2045.7,2044.8,4.89021468]
[1772489842703,0.48029319,2045.5,2044.8,1.67529713]
[1772489843207,0.48029319,2045.5,2044.9,0.45272479]
[1772489845086,0.48029319,2045.7,2045.1,0.45272479]
[1772489845403,0.002,2045.8,2045.1,0.45272479]
[1772489845404,0.002,2045.8,2045.2,0.45272479]
[1772489848322,0.002,2045.8,2044.9,2.11372479]
[1772489848323,0.48029319,2045.7,2044.9,2.11372479]
[1772489848609,0.48029319,2045.7,2045.0,1.22243502]
[1772489848798,0.48029319,2045.7,2044.8,4.89021559]
[1772489849004,0.48029319,2045.7,2044.8,5.34294038]
[1772489849912,0.48029319,2045.7,2044.9,0.45272479]
[1772489850612,0.48029319,2045.7,2045.4,0.001]
[1772489851496,1.22402085,2045.8,2045.4,0.001]
[1772489851694,0.002,2045.8,2045.4,0.001]
[1772489852003,0.002,2045.8,2045.4,0.45372479]
[1772489852813,4.88947057,2046.1,2045.7,2.84618302]
[1772489852814,0.002,2046.1,2045.7,2.84618302]
[1772489852986,1.70413392,2046.1,2045.5,1.67491985]
[1772489853315,0.002,2046.1,2045.6,0.45272479]
[1772489854021,0.002,2046.1,2045.7,2.84618302]
[1772489854186,0.002,2046.1,2045.7,0.45272479]
[1772489855418,0.002,2046.1,2045.8,1.22201583]
[1772489857702,0.002,2046.1,2045.9,0.45272479]
[1772489859218,0.002,2046.5,2045.9,0.45272479]
[1772489859518,1.70390089,2046.5,2045.9,0.45272479]
[1772489859717,1.70390089,2046.5,2046.0,1.22189638]
[1772489860025,0.48229319,2046.5,2046.0,1.67462117]
[1772489860317,0.002,2046.5,2046.0,1.67462117]
[1772489861502,0.5,2046.3,2046.0,1.67462117]
[1772489864645,0.502,2046.3,2046.0,1.67462117]
[1772489865222,0.002,2046.5,2046.1,0.45272479]
[1772489866522,0.002,2046.5,2046.2,1.67450174]
[1772489867706,0.002,2046.6,2046.2,1.67450174]
[1772489867707,0.002,2046.6,2046.3,0.48278027]
[1772489870108,0.48431043,2046.9,2046.4,0.48278027]
[1772489871212,1.70567143,2046.9,2046.4,0.48278027]
[1772489872437,0.48631043,2047.0,2046.5,1.70437811]
[1772489874538,0.48631043,2047.0,2046.5,1.22159784]
[1772489874843,0.48431043,2046.9,2046.4,0.48278027]
[1772489876826,0.48431043,2046.9,2046.5,0.001]
[1772489877029,0.002,2046.7,2046.5,1.22259784]
[1772489879622,0.002,2046.7,2046.5,0.48378027]
[1772489880847,0.48431043,2046.6,2046.3,0.001]
[1772489881047,0.48431043,2046.6,2046.0,0.001]
[1772489881737,0.48431043,2046.4,2046.0,0.001]
[1772489881940,0.48431043,2046.3,2046.0,0.001]
[1772489884628,0.48431043,2046.5,2046.0,0.48378027]
[1772489887043,0.48431043,2046.5,2046.1,1.22183666]
[1772489887350,0.002,2046.7,2046.2,0.48278027]
[1772489890442,0.002,2046.7,2046.3,1.22171724]
[1772489890623,0.002,2046.7,2046.3,1.70449751]
[1772489890825,0.002,2046.5,2046.3,1.70449751]
[1772489891328,0.002,2046.7,2046.3,1.70449751]
[1772489892126,0.002,2046.7,2046.2,1.22273283]
[1772489892127,0.48631043,2046.7,2046.2,1.22273283]
[1772489892619,0.48431043,2046.6,2046.2,1.22273283]
[1772489894871,0.48431043,2046.6,2046.2,0.48378027]
[1772489897758,0.48431043,2046.6,2046.3,1.22171724]
[1772489900954,0.48431043,2046.6,2046.2,0.49059083]
[1772489903161,0.48431043,2046.6,2046.4,0.001]
[1772489903657,0.48631043,2046.6,2046.4,0.001]
[1772489908674,0.002,2046.6,2046.4,0.49059083]
[1772489908968,0.23251048,2046.9,2046.5,0.48959083]
[1772489910973,0.23251048,2046.9,2046.6,1.22153816]
[1772489911139,0.23251048,2046.9,2046.6,1.71112899]
[1772489912752,0.002,2046.9,2046.7,0.48959083]
[1772489913074,0.002,2046.9,2046.7,1.71103722]
[1772489914279,0.002,2046.9,2046.7,0.48959083]
[1772489914573,0.002,2046.9,2046.7,1.71106844]
[1772489914979,0.002,2046.9,2046.7,0.48959083]
[1772489915367,0.002,2046.9,2046.7,1.71106777]
[1772489915872,0.002,2046.9,2046.6,1.22149479]
[1772489916079,0.23251048,2046.9,2046.6,1.71108562]
[1772489916377,0.23051048,2046.7,2046.2,0.001]
[1772489916683,0.23051048,2046.7,2046.2,1.71236284]
[1772489916684,0.22951048,2046.6,2046.2,1.71236284]
[1772489918479,0.22951048,2046.6,2046.2,2.19009387]
[1772489921668,1.2215507,2046.6,2046.2,2.19009387]
[1772489921986,0.22951048,2046.5,2046.2,2.19009387]
[1772489922686,0.22951048,2046.5,2046.2,0.49059083]
[1772489923084,0.22951048,2046.5,2046.2,0.001]
[1772489925379,0.22951048,2046.4,2046.2,0.001]
[1772489925588,0.22951048,2046.4,2046.0,0.001]
[1772489927065,0.22851048,2046.4,2046.1,0.96732186]
[1772489927264,0.22851048,2046.4,2046.1,0.48959083]
[1772489927593,1.45017036,2046.4,2046.0,1.69449085]
[1772489928991,0.22851048,2046.3,2046.0,1.69449085]
[1772489929196,0.22851048,2046.3,2046.2,0.001]
[1772489937973,0.22851048,2046.3,2046.0,0.001]
[1772489937974,0.22751048,2046.2,2046.0,0.001]
[1772489938179,0.22751048,2046.0,2045.3,1.69487296]
[1772489938477,0.22751048,2045.8,2045.3,0.001]
[1772489938694,0.22751048,2045.6,2045.3,0.001]
[1772489938904,0.22751048,2045.6,2045.5,0.00300031]
[1772489939407,1.694,2045.9,2045.5,0.95032598]
[1772489939580,0.22751048,2045.8,2045.6,0.00200031]
[1772489940814,0.22751048,2045.6,2045.5,0.001]
[1772489941793,1.22206001,2045.8,2045.5,0.001]
[1772489941998,0.22751048,2045.7,2045.5,0.001]
[1772489943590,0.22751048,2045.7,2044.9,0.001]
[1772489943591,0.22651048,2045.5,2044.9,0.001]
[1772489943791,0.22651048,2045.2,2044.9,0.001]
[1772489945586,1.44894459,2045.1,2044.9,0.001]
[1772489945915,1.696,2045.0,2044.9,0.001]
[1772489949013,0.22551048,2044.9,2044.5,0.001]
[1772489949323,0.22551048,2044.6,2044.2,0.001]
[1772489949532,0.47773103,2044.7,2044.3,0.00400031]
[1772489949533,0.22551048,2044.4,2044.3,0.00400031]
[1772489949688,0.70324151,2044.4,2044.0,0.001]
[1772489949889,0.22551048,2044.1,2043.7,0.001]
[1772489950092,1.49624151,2044.0,2043.7,0.001]
[1772489950893,2.71933619,2044.0,2043.7,0.001]
[1772489951206,1.01851048,2044.0,2043.7,0.001]
[1772489952135,0.22551048,2043.9,2043.7,0.001]
[1772489952600,0.22551048,2043.9,2043.1,0.47159495]
[1772489953002,0.22551048,2043.7,2043.2,1.69516581]
[1772489953230,1.22321166,2043.8,2043.3,0.47159495]
[1772489953231,1.44872214,2043.8,2043.3,0.47159495]
[1772489953436,1.44868884,2043.9,2043.7,0.001]
[1772489954198,0.22551048,2043.8,2043.4,0.001]
[1772489955302,0.22451048,2043.7,2043.4,0.001]
[1772489955704,0.22451048,2043.5,2043.4,0.001]
[1772489955952,0.22451048,2043.5,2042.7,1.69542205]
[1772489956093,0.22451048,2043.5,2042.8,0.47159495]
[1772489957513,0.22451048,2043.4,2042.8,1.69535059]
[1772489958307,0.22451048,2043.4,2042.8,0.47159495]
[1772489958628,0.22451048,2043.4,2042.8,1.2238039]
[1772489958822,0.22451048,2044.4,2043.0,0.49845555]
[1772489959026,0.22451048,2044.2,2043.2,2.89429061]
[1772489961232,0.22451048,2044.0,2043.3,1.22351098]
[1772489961534,0.22451048,2044.0,2043.3,1.72196653]
[1772489961710,1.22303214,2044.1,2043.6,0.49845555]
[1772489962030,0.22451048,2044.0,2043.5,2.39583506]
[1772489963527,1.44761002,2044.0,2043.5,4.11766604]
[1772489963834,1.44761002,2044.0,2043.6,0.49845555]
[1772489964527,0.22451048,2044.0,2043.6,0.49845555]
[1772489964732,0.22451048,2044.4,2043.6,0.49845555]
[1772489965031,1.695,2044.3,2043.9,0.49845555]
[1772489965515,1.76747323,2044.5,2044.1,1.22303214]
[1772489965516,0.54463399,2044.5,2044.1,1.22303214]
[1772489966028,0.75314416,2044.5,2044.0,1.72149952]
[1772489966236,0.75314416,2044.5,2043.8,0.5]
[1772489966237,1.767485,2044.5,2043.8,0.5]
[1772489966602,0.002,2044.0,2043.8,0.5]
[1772489966908,1.767485,2044.5,2043.8,0.5]
[1772489967236,0.002,2044.3,2043.8,0.5]
[1772489968135,0.002,2044.3,2043.9,0.5]
[1772489969133,0.002,2044.3,2043.8,1.22318761]
[1772489969447,0.002,2044.3,2043.6,1.22328451]
[1772489969999,0.002,2044.3,2043.5,1.72334418]
[1772489970506,0.002,2044.3,2043.6,0.5]
[1772489970928,0.002,2044.3,2043.4,0.5]
[1772489971809,0.002,2044.3,2043.5,0.5]
[1772489972710,0.002,2044.3,2043.8,0.5]
[1772489973726,0.002,2044.3,2044.0,0.5]
[1772489975013,0.002,2044.3,2044.0,1.72308661]
[1772489977841,0.45815261,2044.5,2044.1,0.5]
[1772489979344,0.002,2044.3,2044.1,0.5]
[1772489979643,0.45815261,2044.5,2044.1,0.5]
[1772489979946,0.45815261,2044.5,2044.2,1.22297231]
[1772489981134,2.14406358,2045.3,2044.3,0.49845555]
[1772489981322,0.45406358,2045.2,2044.3,0.49845555]
[1772489982344,0.45406358,2045.0,2044.4,1.22285267]
[1772489982535,0.45406358,2045.0,2044.4,1.72130822]
[1772489988151,0.45406358,2045.0,2044.1,3.37482428]
[1772489988152,0.45815261,2044.8,2044.1,3.37482428]
[1772489988345,0.45815261,2044.8,2044.2,0.46183945]
[1772489991175,0.45815261,2044.7,2044.3,1.22291248]
[1772489991664,0.002,2044.6,2044.3,1.22291248]
[1772489991863,0.46015261,2044.6,2044.3,1.22291248]
[1772489992058,0.46015261,2044.6,2044.1,4.89208125]
[1772489992287,0.46015261,2044.6,2044.1,5.3539207]
[1772489993262,1.68289493,2044.6,2044.2,0.46183945]
[1772489994062,0.46015261,2044.6,2044.2,0.46183945]
[1772489994745,0.45815261,2044.5,2044.0,0.46283945]
[1772489995963,0.002,2044.6,2044.2,0.46183945]
[1772489996162,1.68258673,2045.1,2044.6,0.46183945]
[1772489996859,0.46015261,2045.0,2044.6,0.46183945]
[1772489998375,0.46015261,2045.0,2044.2,3.35046396]
[1772489998376,0.46015261,2044.9,2044.4,0.46183945]
[1772489998552,0.46015261,2044.9,2044.3,1.22286327]
[1772489999548,0.46015261,2044.9,2044.3,1.68470272]
[1772490000238,0.002,2045.1,2044.4,0.46183945]
[1772490000567,0.46015261,2045.3,2044.8,0.46183945]
[1772490000785,0.46015261,2045.4,2044.8,0.46183945]
[1772490000936,7.31752704,2045.6,2045.1,3.35046396]
[1772490000937,2.42887749,2045.6,2045.1,3.35046396]
[1772490001372,1.22409877,2045.7,2045.1,3.35046396]
[1772490001681,1.22409877,2045.7,2045.0,0.5]
[1772490002681,1.22409877,2045.7,2045.2,0.5]
[1772490002881,1.22409877,2045.7,2044.6,0.5]
[1772490003041,1.22409877,2045.7,2044.5,1.22279285]
[1772490003042,1.22409877,2045.7,2044.8,0.5]
[1772490004450,1.22409877,2045.7,2044.9,0.5]
[1772490004869,1.22409877,2045.7,2044.9,1.72250636]
[1772490005055,1.22409877,2045.7,2044.8,1.2226104]
[1772490005056,0.002,2045.2,2044.8,1.2226104]
[1772490005362,0.002,2045.2,2044.8,1.7226104]
[1772490005955,1.22409877,2045.7,2044.9,0.5]
[1772490006147,0.002,2045.7,2045.2,0.5]
[1772490006955,0.002,2045.7,2045.3,1.22231457]
[1772490007677,0.002,2045.7,2045.3,1.72231457]
[1772490008763,0.002,2045.7,2045.4,0.5]
[1772490011268,0.002,2045.7,2045.3,1.22230833]
[1772490011575,0.002,2045.7,2045.3,1.72230833]
[1772490013079,0.002,2045.7,2045.4,0.5]
[1772490013378,0.002,2045.7,2045.3,1.22230833]
[1772490016378,0.002,2045.7,2045.2,0.5]
[1772490016582,0.002,2045.7,2045.2,1.72237432]
[1772490017474,0.002,2045.5,2045.2,1.72237432]
[1772490018797,0.002,2045.5,2045.0,0.501]
[1772490019097,1.684,2045.4,2045.0,0.001]
[1772490021775,1.22231457,2045.3,2045.0,0.001]
[1772490024972,1.94003277,2045.3,2044.8,0.001]
[1772490028574,1.22231457,2045.3,2044.8,0.001]
[1772490029502,1.22231457,2045.3,2045.0,0.001]
[1772490029872,1.22431457,2045.3,2045.0,0.001]
[1772490030680,0.002,2045.7,2045.1,0.499]
[1772490031977,0.002,2045.7,2045.3,0.499]
[1772490034283,0.002,2045.7,2045.4,1.22225481]
[1772490034606,0.002,2045.7,2045.5,0.499]